bitfinex/quotes_SOLUSD_20230116
["timestamp","ask_amount","ask_price","bid_price","bid_amount"]
[1673907649900,31.29,23.987,23.96,21.46196354]
[1673907650224,20.0,23.986,23.96,21.46196354]
[1673907650534,31.29,23.985,23.96,21.46196354]
[1673907650751,20.0,23.984,23.96,21.46196354]
[1673907651080,31.29,23.983,23.96,21.46196354]
[1673907651792,19.63,23.98,23.959,116.5362]
[1673907652110,72.76196354,23.979,23.959,116.5362]
[1673907652324,77.54930354,23.979,23.959,116.5362]
[1673907652516,56.08734,23.979,23.959,116.5362]
[1673907652721,4.78734,23.978,23.943,120.0]
[1673907652937,31.3,23.977,23.943,120.0]
[1673907653262,24.78734,23.976,23.943,120.0]
[1673907653457,19.6,23.97,23.943,120.0]
[1673907653670,31.31,23.969,23.943,120.0]
[1673907653881,4.78734,23.968,23.943,120.0]
[1673907654111,31.31,23.967,23.943,120.0]
[1673907654327,31.31,23.969,23.947,21.46196354]
[1673907654512,19.6,23.97,23.947,21.46196354]
[1673907655035,31.31,23.969,23.948,17.0]
[1673907655250,20.0,23.976,23.948,17.0]
[1673907655251,31.3,23.975,23.948,17.0]
[1673907655460,20.0,23.974,23.949,21.46196354]
[1673907655791,20.0,23.976,23.949,21.46196354]
[1673907655792,31.3,23.975,23.95,17.0]
[1673907656105,20.0,23.974,23.949,21.46196354]
[1673907656300,31.31,23.973,23.95,21.46196354]
[1673907656738,20.0,23.972,23.95,21.46196354]
[1673907657054,31.31,23.971,23.95,21.46196354]
[1673907657260,19.78,23.97,23.941,116.8546]
[1673907657476,31.31,23.969,23.942,21.46196354]
[1673907657993,31.31,23.969,23.941,116.8546]
[1673907658824,20.0,23.968,23.941,116.8546]
[1673907659027,31.31,23.967,23.941,116.8546]
[1673907659264,20.0,23.966,23.94,97.907225]
[1673907659470,31.32,23.965,23.94,97.907225]
[1673907659666,19.6,23.96,23.94,97.907225]
[1673907660083,22.22,23.96,23.94,97.907225]
[1673907660498,31.32,23.959,23.94,97.907225]
[1673907660732,88.88,23.98,23.94,97.907225]
[1673907660733,31.32,23.965,23.941,21.46196354]
[1673907660932,22.2,23.97,23.941,21.46196354]
[1673907661144,51.31,23.969,23.941,21.46196354]
[1673907662504,51.31,23.969,23.94,97.907225]
[1673907662721,22.17,23.96,23.941,21.46196354]
[1673907662928,22.17,23.96,23.94,97.907225]
[1673907664502,31.31,23.968,23.94,97.907225]
[1673907664723,20.0,23.967,23.941,21.46196354]
[1673907664930,31.32,23.966,23.942,17.0]
[1673907665141,24.78734,23.965,23.94,97.907225]
[1673907665344,31.32,23.964,23.941,21.46196354]
[1673907665553,20.0,23.963,23.941,21.46196354]
[1673907665768,31.32,23.964,23.941,21.46196354]
[1673907665975,20.0,23.963,23.941,21.46196354]
[1673907666186,31.32,23.962,23.941,21.46196354]
[1673907666400,31.32,23.962,23.942,17.0]
[1673907666612,20.0,23.963,23.942,17.0]
[1673907666832,20.0,23.968,23.943,21.46196354]
[1673907667020,31.31,23.967,23.944,17.0]
[1673907667227,22.2,23.95,23.94,97.907225]
[1673907667437,36.12734,23.949,23.94,97.907225]
[1673907667653,4.78734,23.948,23.94,97.907225]
[1673907667864,31.34,23.947,23.94,97.907225]
[1673907668069,4.78734,23.946,23.94,97.907225]
[1673907668398,31.34,23.945,23.907,114.0874]
[1673907668604,22.16,23.93,23.907,114.0874]
[1673907668813,31.36,23.929,23.907,114.0874]
[1673907669239,20.0,23.928,23.907,114.0874]
[1673907669855,52.83196354,23.927,23.907,114.0874]
[1673907670080,31.37,23.927,23.907,114.0874]
[1673907670289,20.0,23.926,23.907,114.0874]
[1673907670607,31.37,23.925,23.907,114.0874]
[1673907670922,20.0,23.924,23.907,114.0874]
[1673907671572,22.09,23.92,23.907,114.0874]
[1673907672390,22.09,23.92,23.902,108.2765]
[1673907673131,31.37,23.927,23.902,108.2765]
[1673907673345,31.37,23.927,23.871,255.2862168]
[1673907673346,22.22,23.91,23.882,6.1445814]
[1673907673546,46.27417098,23.919,23.882,6.1445814]
[1673907673547,31.38,23.918,23.882,6.1445814]
[1673907673760,31.38,23.919,23.882,6.1445814]
[1673907673975,44.71417132,23.928,23.882,6.1445814]
[1673907674184,22.04,23.92,23.882,6.1445814]
[1673907674488,21.46196354,23.919,23.882,6.1445814]
[1673907674704,31.38,23.918,23.883,20.0]
[1673907674925,31.38,23.918,23.882,6.1445814]
[1673907674926,4.78734,23.917,23.882,6.1445814]
[1673907675239,31.38,23.916,23.882,6.1445814]
[1673907675458,4.78734,23.915,23.882,6.1445814]
[1673907675650,31.38,23.914,23.882,6.1445814]
[1673907675981,102.34347486,23.914,23.882,6.1445814]
[1673907676176,20.0,23.913,23.882,6.1445814]
[1673907676387,41.46196354,23.913,23.873,5.15331391]
[1673907676603,41.46196354,23.913,23.881,0.53411093]
[1673907676604,22.2,23.9,23.881,0.53411093]
[1673907676922,121.77909886,23.899,23.881,0.53411093]
[1673907677141,4.78734,23.898,23.881,0.53411093]
[1673907677466,44.12979532,23.898,23.881,0.53411093]
[1673907677665,31.39,23.909,23.881,0.53411093]
[1673907677853,36.17734,23.909,23.881,0.53411093]
[1673907678185,20.0,23.908,23.881,0.53411093]
[1673907678504,57.63930354,23.907,23.881,0.53411093]
[1673907678716,20.0,23.906,23.881,0.53411093]
[1673907678910,31.4,23.905,23.881,0.53411093]
[1673907679122,24.78734,23.904,23.881,0.53411093]
[1673907679332,22.22,23.9,23.881,0.53411093]
[1673907681554,0.53411093,23.874,23.86,0.36979725]
[1673907681863,22.22,23.87,23.851,88.27702225]
[1673907682081,31.44,23.869,23.851,88.27702225]
[1673907682269,31.44,23.872,23.851,88.27702225]
[1673907682482,22.03,23.88,23.851,88.27702225]
[1673907682483,31.43,23.879,23.852,6.24473684]
[1673907682688,36.21734,23.879,23.862,120.0]
[1673907682893,88.88,23.9,23.862,120.0]
[1673907682894,22.17,23.89,23.862,120.0]
[1673907683109,4.78734,23.889,23.863,108.6861]
[1673907683330,22.0,23.88,23.863,108.6861]
[1673907684791,22.0,23.88,23.864,6.31265646]
[1673907685033,22.22,23.89,23.864,23.31265646]
[1673907685243,22.22,23.89,23.865,40.54990036]
[1673907685454,22.22,23.89,23.866,24.29372591]
[1673907685668,31.4,23.899,23.867,7.89444835]
[1673907685881,22.39,23.9,23.868,17.0]
[1673907686084,22.39,23.9,23.869,6.12197716]
[1673907686290,22.22,23.91,23.87,59.22]
[1673907686623,31.39,23.909,23.871,6.53172826]
[1673907686830,31.39,23.909,23.872,37.0]
[1673907687156,52.84196354,23.919,23.873,4.79351452]
[1673907687461,22.2,23.91,23.874,17.0]
[1673907687671,22.2,23.91,23.876,4.47061156]
[1673907687893,57.63930354,23.909,23.877,17.0]
[1673907688096,36.17734,23.909,23.878,116.2675]
[1673907688293,4.78734,23.908,23.879,17.0]
[1673907688846,46.24930354,23.908,23.879,17.0]
[1673907689240,4.78734,23.908,23.88,20.54990036]
[1673907689462,22.2,23.91,23.881,37.0]
[1673907689661,22.2,23.91,23.882,5.48338735]
[1673907689866,31.38,23.919,23.883,37.0]
[1673907690075,22.22,23.91,23.884,5.24487804]
[1673907690296,31.38,23.916,23.885,20.0]
[1673907690506,22.16,23.93,23.89,22.16]
[1673907690705,88.88,23.94,23.891,24.92874544]
[1673907690706,22.03,23.94,23.891,24.92874544]
[1673907690921,36.13734,23.939,23.892,21.75901937]
[1673907691133,22.22,23.93,23.892,42.30891973]
[1673907691457,36.14734,23.929,23.894,6.95618365]
[1673907691646,4.78734,23.928,23.895,37.0]
[1673907691859,31.36,23.929,23.896,4.21792207]
[1673907692070,31.35,23.939,23.897,17.0]
[1673907692297,4.78734,23.938,23.899,7.04150291]
[1673907692485,22.04,23.93,23.9,17.0]
[1673907692699,31.36,23.929,23.901,20.0]
[1673907692908,31.36,23.929,23.902,17.0]
[1673907693114,31.35,23.937,23.902,17.0]
[1673907693330,4.78734,23.936,23.903,20.0]
[1673907693545,31.36,23.935,23.904,17.0]
[1673907693766,4.78734,23.934,23.905,20.0]
[1673907693981,31.36,23.933,23.906,17.0]
[1673907694188,31.36,23.933,23.907,20.0]
[1673907694505,31.35,23.939,23.908,24.2832616]
[1673907694708,31.35,23.939,23.91,22.18]
[1673907695030,31.34,23.949,23.911,37.0]
[1673907695240,4.78734,23.948,23.912,7.05954937]
[1673907695434,22.17,23.94,23.913,37.0]
[1673907695643,31.35,23.939,23.913,37.0]
[1673907695873,22.17,23.94,23.913,37.0]
[1673907696711,22.17,23.94,23.914,20.54355576]
[1673907697029,22.16,23.94,23.915,17.0]
[1673907697221,31.35,23.939,23.915,17.0]
[1673907697426,31.35,23.939,23.908,124.74049319]
[1673907697427,31.35,23.939,23.916,20.54355576]
[1673907697644,31.35,23.939,23.917,17.0]
[1673907697866,22.16,23.94,23.917,17.0]
[1673907698585,22.16,23.94,23.917,37.54355576]
[1673907700892,31.34,23.947,23.917,37.54355576]
[1673907701108,22.2,23.95,23.918,4.88862856]
[1673907701324,22.2,23.95,23.919,17.0]
[1673907701535,22.2,23.95,23.919,37.54355576]
[1673907701749,22.2,23.95,23.92,28.02068553]
[1673907702068,22.2,23.95,23.921,37.54355576]
[1673907702069,31.34,23.949,23.921,37.54355576]
[1673907702384,31.34,23.949,23.922,25.20336961]
[1673907702584,31.32,23.959,23.923,37.0]
[1673907702784,22.17,23.95,23.923,57.54355576]
[1673907703206,22.17,23.95,23.925,4.48554287]
[1673907703412,22.17,23.95,23.926,17.0]
[1673907703648,22.17,23.95,23.927,20.0]
[1673907703855,31.33,23.957,23.928,17.0]
[1673907704178,31.33,23.957,23.928,37.54355576]
[1673907704385,31.33,23.957,23.929,20.54355576]
[1673907704578,31.33,23.957,23.93,17.0]
[1673907705022,31.33,23.957,23.93,37.54355576]
[1673907705747,20.0,23.956,23.93,37.54355576]
[1673907705952,22.05,23.96,23.931,24.67819082]
[1673907706161,22.17,23.97,23.932,22.61459156]
[1673907706357,31.31,23.969,23.934,6.74725968]
[1673907706571,31.31,23.969,23.935,17.0]
[1673907706796,31.31,23.969,23.937,6.19641639]
[1673907707005,31.31,23.969,23.938,17.0]
[1673907707544,36.09734,23.969,23.939,20.54355576]
[1673907707853,36.09734,23.969,23.94,17.0]
[1673907708049,36.09734,23.969,23.94,22.81949089]
[1673907708377,36.09734,23.969,23.942,5.20286285]
[1673907708378,31.31,23.969,23.942,5.20286285]
[1673907708584,22.17,23.97,23.943,17.0]
[1673907708793,22.17,23.97,23.944,20.0]
[1673907708794,31.31,23.969,23.944,20.0]
[1673907709114,31.31,23.969,23.945,17.0]
[1673907709422,31.31,23.969,23.945,37.54355576]
[1673907709621,22.17,23.97,23.946,119.983]
[1673907709827,22.17,23.97,23.947,37.0]
[1673907710153,22.17,23.97,23.946,125.9399928]
[1673907710154,22.17,23.97,23.946,119.983]
[1673907710366,31.31,23.973,23.948,20.54355576]
[1673907710574,31.3,23.979,23.946,119.983]
[1673907710790,22.04,23.97,23.946,119.983]
[1673907711201,22.04,23.97,23.947,20.54355576]
[1673907711404,31.3,23.977,23.947,20.54355576]
[1673907711734,4.78734,23.976,23.949,6.3687255]
[1673907711948,394.3,23.986,23.95,128.6304]
[1673907712158,22.19,23.97,23.948,20.0]
[1673907712474,4.78734,23.969,23.946,119.983]
[1673907712676,31.31,23.968,23.946,119.983]
[1673907712893,4.78734,23.967,23.946,119.983]
[1673907713210,22.19,23.97,23.946,119.983]
[1673907713401,4.78734,23.969,23.946,119.983]
[1673907715098,4.78734,23.969,23.935,108.6304]
[1673907715310,40.25853121,23.968,23.935,108.6304]
[1673907715616,40.25853121,23.968,23.936,20.0]
[1673907715617,4.78734,23.967,23.936,20.0]
[1673907715834,4.78734,23.967,23.935,108.6304]
[1673907717214,4.78734,23.967,23.936,20.0]
[1673907717622,21.49269,23.967,23.936,20.0]
[1673907718129,21.49269,23.967,23.937,17.0]
[1673907718342,16.70535,23.967,23.939,4.41592099]
[1673907718552,16.70535,23.967,23.94,17.0]
[1673907718784,4.78734,23.966,23.941,20.0]
[1673907718977,22.2,23.96,23.941,20.0]
[1673907719187,16.70535,23.967,23.942,17.0]
[1673907719394,16.70535,23.967,23.943,20.0]
[1673907719609,22.22,23.96,23.944,17.0]
[1673907719819,22.22,23.96,23.945,20.0]
[1673907720127,22.22,23.96,23.946,17.0]
[1673907720339,22.22,23.96,23.947,20.0]
[1673907720548,22.22,23.96,23.933,114.7739]
[1673907720768,22.22,23.96,23.9,89.07]
[1673907720769,22.0,23.95,23.935,16.70535]
[1673907720988,26.78734,23.95,23.935,16.70535]
[1673907721391,22.0,23.95,23.935,16.70535]
[1673907722017,26.78734,23.95,23.935,16.70535]
[1673907722462,22.2,23.94,23.935,16.70535]
[1673907722650,36.13734,23.939,23.935,15.07835]
[1673907722861,4.78734,23.938,23.935,15.07835]
[1673907723076,21.78734,23.938,23.935,15.07835]
[1673907723391,21.78734,23.938,23.896,117.4832]
[1673907723392,190.43002873,23.937,23.896,117.4832]
[1673907723605,22.22,23.92,23.896,117.4832]
[1673907724549,64.48746455,23.92,23.896,117.4832]
[1673907724761,4.78734,23.919,23.896,117.4832]
[1673907725397,45.60699299,23.919,23.896,117.4832]
[1673907725814,22.22,23.91,23.895,16.737257]
[1673907726023,4.78734,23.919,23.895,16.737257]
[1673907726473,22.22,23.93,23.895,16.737257]
[1673907726659,22.16,23.92,23.895,16.737257]
[1673907727196,22.16,23.92,23.896,20.0]
[1673907727390,22.16,23.92,23.897,17.0]
[1673907727601,22.16,23.92,23.898,20.0]
[1673907728250,22.16,23.92,23.899,17.0]
[1673907728872,22.16,23.92,23.9,20.0]
[1673907729087,22.16,23.92,23.901,17.0]
[1673907729296,22.16,23.92,23.902,20.0]
[1673907729823,22.16,23.92,23.896,20.0]
[1673907731615,22.16,23.92,23.895,16.737257]
[1673907732243,22.16,23.92,23.896,17.0]
[1673907733194,22.16,23.92,23.895,16.737257]
[1673907733380,22.16,23.92,23.896,21.531]
[1673907734350,31.37,23.928,23.897,17.0]
[1673907734558,31.37,23.928,23.898,23.566]
[1673907734752,36.14734,23.929,23.899,17.0]
[1673907735188,36.14734,23.929,23.898,20.0]
[1673907735384,4.78734,23.928,23.898,20.0]
[1673907735590,22.09,23.92,23.898,20.0]
[1673907736126,22.09,23.92,23.896,20.0]
[1673907736654,22.09,23.92,23.897,7.572]
[1673907736866,4.78734,23.928,23.897,7.572]
[1673907737062,22.0,23.93,23.898,37.0]
[1673907737272,22.2,23.92,23.898,37.0]
[1673907737477,22.2,23.92,23.898,20.0]
[1673907737706,22.2,23.92,23.896,20.0]
[1673907737911,4.78734,23.919,23.896,20.0]
[1673907738228,4.78734,23.919,23.894,108.37]
[1673907738442,22.09,23.91,23.894,108.37]
[1673907738638,36.16734,23.919,23.894,108.37]
[1673907738845,4.78734,23.919,23.894,108.37]
[1673907739379,22.2,23.91,23.894,108.37]
[1673907739709,22.2,23.91,23.892,16.739635]
[1673907739891,22.22,23.9,23.892,16.739635]
[1673907741152,22.16,23.91,23.892,16.739635]
[1673907741372,36.17734,23.909,23.892,16.739635]
[1673907741587,22.22,23.9,23.892,16.739635]
[1673907744637,4.78734,23.908,23.892,16.739635]
[1673907744847,22.04,23.91,23.893,17.0]
[1673907745695,31.38,23.919,23.892,16.739635]
[1673907745696,22.19,23.9,23.892,16.739635]
[1673907745902,93.70734,23.9,23.892,16.739635]
[1673907746120,4.78734,23.899,23.892,16.739635]
[1673907747162,32.15894347,23.899,23.892,16.739635]
[1673907747698,28.82786347,23.898,23.892,16.739635]
[1673907748231,4.78734,23.899,23.892,16.739635]
[1673907748416,28.82786347,23.898,23.892,16.739635]
[1673907748636,4.78734,23.899,23.892,16.739635]
[1673907748863,36.18734,23.899,23.892,16.739635]
[1673907749054,36.18734,23.899,23.869,111.2345]
[1673907749265,4.78734,23.899,23.869,111.2345]
[1673907749709,22.19,23.91,23.869,111.2345]
[1673907749884,26.97734,23.91,23.869,127.982143]
[1673907750105,26.97734,23.91,23.87,39.22]
[1673907750312,22.19,23.91,23.87,17.0]
[1673907750649,36.17734,23.909,23.871,20.0]
[1673907750862,4.78734,23.909,23.869,127.982143]
[1673907751064,22.22,23.9,23.869,127.982143]
[1673907752967,31.39,23.906,23.87,17.0]
[1673907753151,4.78734,23.908,23.871,20.0]
[1673907753361,22.0,23.9,23.872,17.0]
[1673907753792,22.0,23.9,23.873,20.0]
[1673907753995,4.78734,23.908,23.874,17.0]
[1673907754205,4.78734,23.908,23.875,20.0]
[1673907754418,31.39,23.907,23.876,17.0]
[1673907754627,22.22,23.9,23.876,17.0]
[1673907754866,22.22,23.9,23.877,20.0]
[1673907755169,22.22,23.9,23.878,17.0]
[1673907755356,22.22,23.9,23.879,19.5]
[1673907755568,22.22,23.9,23.88,17.0]
[1673907756108,22.22,23.9,23.878,17.0]
[1673907756302,22.22,23.9,23.877,20.0]
[1673907756509,22.22,23.9,23.869,127.982143]
[1673907758401,22.22,23.9,23.87,17.0]
[1673907758843,22.22,23.9,23.871,20.0]
[1673907759060,22.16,23.91,23.872,17.0]
[1673907759256,22.16,23.91,23.873,20.0]
[1673907759461,22.16,23.91,23.874,17.0]
[1673907759776,22.16,23.91,23.875,20.0]
[1673907759987,22.16,23.91,23.876,17.0]
[1673907760201,22.16,23.91,23.877,21.456]
[1673907760403,22.16,23.91,23.878,17.0]
[1673907760608,22.16,23.91,23.879,2.289]
[1673907760844,26.94734,23.91,23.879,22.289]
[1673907761046,31.39,23.909,23.88,17.0]
[1673907761245,26.94734,23.91,23.881,20.0]
[1673907761460,26.94734,23.91,23.882,128.4534]
[1673907761669,26.94734,23.91,23.883,20.0]
[1673907761879,36.17734,23.909,23.883,20.0]
[1673907762089,4.78734,23.908,23.882,111.4534]
[1673907762299,31.39,23.907,23.883,20.0]
[1673907763239,36.17734,23.907,23.884,17.0]
[1673907763462,24.78734,23.906,23.883,17.0]
[1673907763677,20.0,23.906,23.883,17.0]
[1673907764110,22.21,23.92,23.884,4.72851388]
[1673907764317,22.21,23.92,23.885,17.0]
[1673907764760,31.38,23.919,23.886,5.413]
[1673907765059,4.78734,23.918,23.887,17.0]
[1673907765278,22.22,23.91,23.888,20.0]
[1673907765488,27.00734,23.91,23.888,20.0]
[1673907765703,31.39,23.909,23.888,20.0]
[1673907765888,31.39,23.909,23.883,20.0]
[1673907766094,27.00734,23.91,23.883,20.0]
[1673907767067,31.39,23.909,23.883,20.0]
[1673907767260,36.17734,23.909,23.883,20.0]
[1673907767466,4.78734,23.909,23.883,25.3690599]
[1673907767896,22.22,23.91,23.883,25.3690599]
[1673907768225,22.22,23.91,23.883,20.0]
[1673907768537,57.63930354,23.909,23.883,20.0]
[1673907768744,4.78734,23.908,23.883,20.0]
[1673907770728,31.39,23.909,23.884,17.0]
[1673907770937,22.22,23.91,23.882,111.4534]
[1673907771152,36.17734,23.909,23.883,20.0]
[1673907771378,4.78734,23.908,23.883,20.0]
[1673907771570,31.39,23.907,23.883,20.0]
[1673907771781,4.78734,23.908,23.883,20.0]
[1673907773145,31.39,23.909,23.883,20.0]
[1673907773475,22.22,23.91,23.884,17.0]
[1673907773872,22.22,23.91,23.885,26.37586519]
[1673907774097,22.22,23.91,23.886,17.0]
[1673907774309,31.38,23.917,23.887,20.0]
[1673907774518,31.38,23.917,23.888,17.0]
[1673907774838,20.0,23.916,23.888,17.0]
[1673907775489,20.0,23.918,23.888,17.0]
[1673907775692,31.38,23.917,23.888,17.0]
[1673907775903,20.0,23.916,23.888,17.0]
[1673907776117,31.38,23.915,23.888,17.0]
[1673907776308,20.0,23.914,23.888,17.0]
[1673907776518,20.0,23.916,23.888,17.0]
[1673907776959,20.0,23.918,23.888,17.0]
[1673907777152,31.38,23.917,23.886,21.41683923]
[1673907777357,20.0,23.916,23.887,20.0]
[1673907777573,20.0,23.916,23.888,17.0]
[1673907778090,20.0,23.916,23.885,20.0]
[1673907778308,22.09,23.91,23.884,20.0]
[1673907778641,22.09,23.91,23.883,20.0]
[1673907779469,22.09,23.91,23.884,17.0]
[1673907779682,22.09,23.91,23.885,20.0]
[1673907779992,23.9,23.91,23.885,20.0]
[1673907780219,31.39,23.909,23.883,20.0]
[1673907781140,52.85196354,23.909,23.883,20.0]
[1673907781354,4.78734,23.908,23.883,20.0]
[1673907781571,31.39,23.907,23.883,20.0]
[1673907781999,4.78734,23.908,23.883,20.0]
[1673907782211,23.9,23.91,23.883,27.47171402]
[1673907782396,23.9,23.91,23.884,17.0]
[1673907782734,23.9,23.91,23.886,7.21712499]
[1673907782927,23.9,23.91,23.887,17.0]
[1673907783362,31.38,23.917,23.888,24.76402095]
[1673907783573,31.38,23.917,23.889,17.0]
[1673907783787,23.74,23.91,23.889,17.0]
[1673907783994,23.74,23.91,23.887,17.0]
[1673907784207,23.74,23.91,23.888,20.0]
[1673907784404,23.74,23.91,23.889,17.0]
[1673907784627,31.38,23.915,23.889,17.0]
[1673907784820,20.0,23.914,23.889,17.0]
[1673907785030,31.39,23.913,23.889,17.0]
[1673907785256,20.0,23.912,23.889,17.0]
[1673907785669,23.82,23.91,23.888,20.0]
[1673907785883,23.82,23.91,23.882,111.4534]
[1673907785884,23.82,23.91,23.884,20.0]
[1673907786094,23.82,23.91,23.883,20.0]
[1673907786323,31.39,23.909,23.883,20.0]
[1673907786513,31.39,23.909,23.883,25.3444901]
[1673907787063,31.39,23.909,23.884,23.65811035]
[1673907787274,31.39,23.909,23.885,20.0]
[1673907787584,31.39,23.909,23.886,17.0]
[1673907787776,31.39,23.909,23.887,20.0]
[1673907788210,31.39,23.909,23.888,17.0]
[1673907788826,23.89,23.91,23.888,17.0]
[1673907789240,20.0,23.912,23.888,17.0]
[1673907789457,20.0,23.916,23.888,17.0]
[1673907789771,31.38,23.915,23.888,17.0]
[1673907789976,20.0,23.914,23.888,17.0]
[1673907790185,31.39,23.913,23.888,17.0]
[1673907790397,20.0,23.912,23.888,17.0]
[1673907790623,20.0,23.912,23.887,20.0]
[1673907790624,23.89,23.91,23.887,20.0]
[1673907790840,31.39,23.909,23.883,20.0]
[1673907791042,36.17734,23.909,23.883,20.0]
[1673907791256,57.63930354,23.909,23.883,20.0]
[1673907792088,36.17734,23.909,23.883,20.0]
[1673907792293,4.78734,23.908,23.883,20.0]
[1673907792506,31.39,23.907,23.883,20.0]
[1673907792714,4.78734,23.906,23.882,111.4534]
[1673907792924,31.4,23.905,23.882,111.4534]
[1673907793142,23.89,23.9,23.87,120.0]
[1673907793350,36.18734,23.899,23.871,117.0618]
[1673907793564,23.89,23.89,23.871,117.0618]
[1673907795766,23.89,23.89,23.872,17.0]
[1673907798100,23.89,23.89,23.873,20.0]
[1673907798305,23.89,23.89,23.874,17.0]
[1673907798517,23.89,23.89,23.875,20.0]
[1673907798832,23.89,23.89,23.876,17.0]
[1673907799235,23.89,23.89,23.877,20.0]
[1673907799441,23.89,23.89,23.878,17.0]
[1673907799648,31.41,23.897,23.878,17.0]
[1673907799875,4.78734,23.898,23.878,17.0]
[1673907800515,31.4,23.899,23.878,17.0]
[1673907800708,23.89,23.9,23.878,17.0]
[1673907801985,31.4,23.899,23.878,17.0]
[1673907803456,23.89,23.9,23.878,17.0]
[1673907805023,31.4,23.899,23.878,17.0]
[1673907806077,23.89,23.9,23.878,17.0]
[1673907806274,31.4,23.899,23.878,17.0]
[1673907807134,23.89,23.9,23.878,17.0]
[1673907809423,23.89,23.9,23.886,120.0]
[1673907809636,23.89,23.9,23.887,17.0]
[1673907809842,23.89,23.9,23.878,17.0]
[1673907811004,23.89,23.9,23.886,120.0]
[1673907811218,23.89,23.9,23.878,17.0]
[1673907811219,23.89,23.9,23.887,17.0]
[1673907811422,23.89,23.9,23.878,17.0]
[1673907811631,31.38,23.917,23.886,120.0]
[1673907811632,23.89,23.91,23.886,120.0]
[1673907811842,51.39,23.909,23.887,17.0]
[1673907812264,23.89,23.9,23.886,120.0]
[1673907812490,23.89,23.9,23.877,140.0]
[1673907812711,23.89,23.9,23.877,20.0]
[1673907812926,31.39,23.908,23.878,4.99661982]
[1673907813120,20.0,23.907,23.879,5.62607052]
[1673907813330,31.39,23.906,23.874,20.0]
[1673907813556,20.0,23.905,23.874,4.48174835]
[1673907813761,23.89,23.9,23.875,17.0]
[1673907814397,23.89,23.9,23.876,20.0]
[1673907814924,23.89,23.9,23.872,20.0]
[1673907815112,23.89,23.9,23.872,25.04267965]
[1673907815324,23.89,23.9,23.872,45.58623541]
[1673907815533,23.89,23.9,23.873,120.0]
[1673907815759,23.89,23.9,23.874,20.0]
[1673907816180,23.89,23.9,23.873,20.0]
[1673907816497,31.4,23.899,23.873,20.0]
[1673907816930,31.4,23.899,23.874,17.0]
[1673907817113,31.4,23.899,23.875,20.0]
[1673907818287,31.4,23.899,23.872,20.0]
[1673907818815,31.4,23.899,23.873,17.0]
[1673907819019,31.4,23.899,23.874,20.0]
[1673907819225,31.4,23.899,23.875,17.0]